[Event "Early-Titled-Tuesday-Blitz-March-05-2024"]
[Site "Chess.com"]
[Date "2024.03.05"]
[Round "3"]
[White "Zhigalko_Sergei"]
[Black "chess94cu"]
[Result "1-0"]
[WhiteElo "2898"]
[BlackElo "2658"]
[TimeControl "180+1"]
[EndTime "8:32:00 PST"]
[Termination "Zhigalko_Sergei won by resignation"]

1. e4 {[%clk 0:03:00.9]} 1... e5 {[%clk 0:02:59.3]} 2. Nf3 {[%clk 0:03:00.2]}
2... Nc6 {[%clk 0:03:00]} 3. Bc4 {[%clk 0:03:00.1]} 3... Nf6 {[%clk 0:02:59.4]}
4. d3 {[%clk 0:02:59.4]} 4... h6 {[%clk 0:02:59.5]} 5. Nbd2 {[%clk 0:02:58.1]}
5... d6 {[%clk 0:02:56.4]} 6. c3 {[%clk 0:02:58]} 6... g6 {[%clk 0:02:54.9]} 7.
O-O {[%clk 0:02:57.6]} 7... Bg7 {[%clk 0:02:55.4]} 8. Re1 {[%clk 0:02:57.6]}
8... O-O {[%clk 0:02:55.2]} 9. Nf1 {[%clk 0:02:57.7]} 9... a6 {[%clk 0:02:50.1]}
10. Bb3 {[%clk 0:02:57.8]} 10... d5 {[%clk 0:02:38.4]} 11. Ng3 {[%clk
0:02:47.2]} 11... Re8 {[%clk 0:02:36.8]} 12. exd5 {[%clk 0:02:41.3]} 12... Nxd5
{[%clk 0:02:35.3]} 13. d4 {[%clk 0:02:41.8]} 13... Nb6 {[%clk 0:02:02.7]} 14.
Nxe5 {[%clk 0:02:23.9]} 14... Nxe5 {[%clk 0:02:01.3]} 15. dxe5 {[%clk
0:02:24.1]} 15... Qxd1 {[%clk 0:02:01.2]} 16. Rxd1 {[%clk 0:02:21]} 16... Rxe5
{[%clk 0:01:34.9]} 17. Bf4 {[%clk 0:02:14.7]} 17... Re7 {[%clk 0:01:18.2]} 18.
Re1 {[%clk 0:01:56]} 18... Be6 {[%clk 0:00:58.3]} 19. Bxe6 {[%clk 0:01:52.9]}
19... fxe6 {[%clk 0:00:59.2]} 20. Be5 {[%clk 0:01:46.5]} 20... Bxe5 {[%clk
0:00:56.7]} 21. Rxe5 {[%clk 0:01:47.4]} 21... Nc4 {[%clk 0:00:57]} 22. Re2
{[%clk 0:01:46.9]} 22... Rd8 {[%clk 0:00:57.7]} 23. Ne4 {[%clk 0:01:32.8]} 23...
b6 {[%clk 0:00:54.1]} 24. Rae1 {[%clk 0:01:31.9]} 24... Kf7 {[%clk 0:00:50.5]}
25. h4 {[%clk 0:01:28.7]} 25... Rd5 {[%clk 0:00:45.1]} 26. b3 {[%clk 0:01:24.2]}
26... Nd6 {[%clk 0:00:44.4]} 27. Nd2 {[%clk 0:01:19]} 27... Nf5 {[%clk
0:00:34.2]} 28. Nf3 {[%clk 0:01:15.7]} 28... a5 {[%clk 0:00:29.9]} 29. g4 {[%clk
0:01:12]} 29... Nd6 {[%clk 0:00:21.4]} 30. Kg2 {[%clk 0:01:12]} 30... Kf6 {[%clk
0:00:14.8]} 31. c4 {[%clk 0:01:03.2]} 31... Rc5 {[%clk 0:00:11.3]} 32. Ne5
{[%clk 0:00:55.2]} 32... Nf7 {[%clk 0:00:09.5]} 33. Nd3 {[%clk 0:00:45.5]} 33...
Rc6 {[%clk 0:00:10.1]} 34. Re3 {[%clk 0:00:46.2]} 34... Rd6 {[%clk 0:00:09.8]}
35. c5 {[%clk 0:00:37.4]} 35... bxc5 {[%clk 0:00:09]} 36. Nxc5 {[%clk
0:00:36.9]} 36... e5 {[%clk 0:00:09.7]} 37. Ne4+ {[%clk 0:00:37.1]} 37... Kg7
{[%clk 0:00:09.2]} 38. Nxd6 {[%clk 0:00:37]} 38... cxd6 {[%clk 0:00:10.1]} 39.
Rc3 {[%clk 0:00:31.9]} 39... g5 {[%clk 0:00:08.7]} 40. h5 {[%clk 0:00:30.9]}
40... e4 {[%clk 0:00:06.7]} 41. Rc6 {[%clk 0:00:25.3]} 41... d5 {[%clk
0:00:05.4]} 42. Rg6+ {[%clk 0:00:24.6]} 42... Kh7 {[%clk 0:00:05.3]} 43. Rd1
{[%clk 0:00:18]} 43... Rd7 {[%clk 0:00:05.3]} 44. Re6 {[%clk 0:00:16.8]} 44...
Kg7 {[%clk 0:00:04.4]} 45. Rxe4 {[%clk 0:00:15.7]} 45... Kf6 {[%clk 0:00:03]}
46. Ra4 {[%clk 0:00:14.2]} 46... Ne5 {[%clk 0:00:03.3]} 47. Kg3 {[%clk
0:00:14.7]} 47... Rc7 {[%clk 0:00:02.6]} 48. Rxd5 {[%clk 0:00:12]} 48... Rc3+
{[%clk 0:00:03]} 49. Kg2 {[%clk 0:00:12.3]} 49... Nf3 {[%clk 0:00:02.9]} 50.
Rf5+ {[%clk 0:00:12.4]} 50... Ke6 {[%clk 0:00:03.4]} 51. Rxf3 {[%clk 0:00:13.2]}
1-0

[Event "Early-Titled-Tuesday-Blitz-March-05-2024"]
[Site "Chess.com"]
[Date "2024.03.05"]
[Round "3"]
[White "ljuks68"]
[Black "ricaurtelopezj1955"]
[Result "1-0"]
[WhiteElo "2409"]
[BlackElo "2173"]
[TimeControl "180+1"]
[EndTime "8:32:00 PST"]
[Termination "ljuks68 won on time"]

1. e4 {[%clk 0:02:59.7]} 1... e5 {[%clk 0:02:58.1]} 2. Nf3 {[%clk 0:02:59.7]}
2... d5 {[%clk 0:02:56.2]} 3. exd5 {[%clk 0:02:56.2]} 3... e4 {[%clk 0:02:53.3]}
4. Qe2 {[%clk 0:02:56.3]} 4... Nf6 {[%clk 0:02:52.3]} 5. d3 {[%clk 0:02:56.1]}
5... Be7 {[%clk 0:02:49.9]} 6. dxe4 {[%clk 0:02:55.5]} 6... O-O {[%clk
0:02:45.8]} 7. Nbd2 {[%clk 0:02:50.5]} 7... Re8 {[%clk 0:02:43]} 8. Qc4 {[%clk
0:02:45.3]} 8... c6 {[%clk 0:02:30]} 9. dxc6 {[%clk 0:02:32.4]} 9... Nxc6 {[%clk
0:02:27.3]} 10. Bd3 {[%clk 0:02:32.3]} 10... Be6 {[%clk 0:02:13.9]} 11. Qb5
{[%clk 0:02:30.6]} 11... Nb4 {[%clk 0:02:02.9]} 12. O-O {[%clk 0:02:19.4]} 12...
a6 {[%clk 0:01:59.4]} 13. Qxb7 {[%clk 0:02:17.4]} 13... Nxd3 {[%clk 0:01:58.6]}
14. cxd3 {[%clk 0:02:17.4]} 14... Qxd3 {[%clk 0:01:57.5]} 15. Ne5 {[%clk
0:01:34.7]} 15... Qe2 {[%clk 0:01:31.2]} 16. Qb6 {[%clk 0:01:11.3]} 16... Nxe4
{[%clk 0:01:12.8]} 17. Nxe4 {[%clk 0:01:03.7]} 17... Qxe4 {[%clk 0:01:10]} 18.
Qe3 {[%clk 0:00:58.2]} 18... Qc2 {[%clk 0:01:05.3]} 19. Qd3 {[%clk 0:00:47]}
19... Qxd3 {[%clk 0:01:01.6]} 20. Nxd3 {[%clk 0:00:46.8]} 20... Bc4 {[%clk
0:01:01]} 21. Nf4 {[%clk 0:00:34.6]} 21... Bxf1 {[%clk 0:00:58.5]} 22. Kxf1
{[%clk 0:00:34.8]} 22... Bb4 {[%clk 0:00:56.4]} 23. Be3 {[%clk 0:00:34.1]} 23...
Rac8 {[%clk 0:00:54.6]} 24. Nd5 {[%clk 0:00:32.2]} 24... Ba5 {[%clk 0:00:52.2]}
25. b4 {[%clk 0:00:28.8]} 25... Bd8 {[%clk 0:00:49.8]} 26. a4 {[%clk 0:00:28.1]}
26... Rc2 {[%clk 0:00:46.8]} 27. Rb1 {[%clk 0:00:19.6]} 27... Ra2 {[%clk
0:00:43.8]} 28. b5 {[%clk 0:00:19.2]} 28... Rxa4 {[%clk 0:00:41.7]} 29. b6
{[%clk 0:00:19]} 29... Bxb6 {[%clk 0:00:40.7]} 30. Rxb6 {[%clk 0:00:16.5]} 30...
Ra2 {[%clk 0:00:39]} 31. g3 {[%clk 0:00:14.6]} 31... f6 {[%clk 0:00:38.6]} 32.
Rb7 {[%clk 0:00:14.4]} 32... a5 {[%clk 0:00:36.9]} 33. Ne7+ {[%clk 0:00:14.6]}
33... Kh8 {[%clk 0:00:34.8]} 34. Nf5 {[%clk 0:00:14]} 34... g6 {[%clk
0:00:32.1]} 35. Nd6 {[%clk 0:00:13.4]} 35... Rf8 {[%clk 0:00:27.7]} 36. Ra7
{[%clk 0:00:07.2]} 36... Kg8 {[%clk 0:00:24.6]} 37. g4 {[%clk 0:00:05.8]} 37...
a4 {[%clk 0:00:23.7]} 38. Bd4 {[%clk 0:00:04.5]} 38... a3 {[%clk 0:00:22.8]} 39.
g5 {[%clk 0:00:04.8]} 39... h6 {[%clk 0:00:19]} 40. gxf6 {[%clk 0:00:03.2]}
40... Rd2 {[%clk 0:00:18]} 41. f7+ {[%clk 0:00:03.2]} 41... Kh7 {[%clk
0:00:15.7]} 42. Bc5 {[%clk 0:00:03.7]} 42... Rd5 {[%clk 0:00:13.2]} 43. Bxa3
{[%clk 0:00:03.2]} 43... Rf5 {[%clk 0:00:13.3]} 44. Nxf5 {[%clk 0:00:03]} 44...
gxf5 {[%clk 0:00:11.5]} 45. Bxf8 {[%clk 0:00:03.1]} 45... Kg6 {[%clk 0:00:06.5]}
46. Bc5 {[%clk 0:00:04]} 46... Kf6 {[%clk 0:00:06.4]} 47. f8=Q+ {[%clk 0:00:04]}
1-0

[Event "Early-Titled-Tuesday-Blitz-March-05-2024"]
[Site "Chess.com"]
[Date "2024.03.05"]
[Round "3"]
[White "BogdanDeac"]
[Black "CarlosjPineror"]
[Result "1-0"]
[WhiteElo "3000"]
[BlackElo "2714"]
[TimeControl "180+1"]
[EndTime "8:32:01 PST"]
[Termination "BogdanDeac won on time"]

1. d4 {[%clk 0:03:00.9]} 1... Nf6 {[%clk 0:02:59.8]} 2. Nf3 {[%clk 0:03:01.1]}
2... e6 {[%clk 0:03:00.2]} 3. Bf4 {[%clk 0:03:01]} 3... b6 {[%clk 0:02:59.5]} 4.
e3 {[%clk 0:03:01]} 4... Bb7 {[%clk 0:02:59.9]} 5. c4 {[%clk 0:03:01.2]} 5...
Nh5 {[%clk 0:02:54.5]} 6. Bg5 {[%clk 0:02:59]} 6... Be7 {[%clk 0:02:52.6]} 7.
Bxe7 {[%clk 0:02:58.3]} 7... Qxe7 {[%clk 0:02:53.5]} 8. Nc3 {[%clk 0:02:58.4]}
8... d6 {[%clk 0:02:51.9]} 9. Be2 {[%clk 0:02:56.7]} 9... Nf6 {[%clk 0:02:51.9]}
10. Qc2 {[%clk 0:02:55]} 10... Nbd7 {[%clk 0:02:48.1]} 11. e4 {[%clk 0:02:54.1]}
11... O-O {[%clk 0:02:39.9]} 12. O-O {[%clk 0:02:53.4]} 12... e5 {[%clk
0:02:38]} 13. d5 {[%clk 0:02:52.8]} 13... a5 {[%clk 0:02:36.1]} 14. b3 {[%clk
0:02:49.4]} 14... Nc5 {[%clk 0:02:30.4]} 15. a3 {[%clk 0:02:48.5]} 15... Bc8
{[%clk 0:02:21.7]} 16. b4 {[%clk 0:02:46.2]} 16... Na6 {[%clk 0:02:22]} 17. Rab1
{[%clk 0:02:43]} 17... Bg4 {[%clk 0:02:21.1]} 18. Ne1 {[%clk 0:02:41.8]} 18...
Bxe2 {[%clk 0:02:12.5]} 19. Qxe2 {[%clk 0:02:42.7]} 19... Nd7 {[%clk 0:02:04.7]}
20. Nd3 {[%clk 0:02:41.3]} 20... g6 {[%clk 0:01:58.9]} 21. Nb5 {[%clk 0:02:14]}
21... Rfc8 {[%clk 0:01:42.3]} 22. Qd2 {[%clk 0:02:03.3]} 22... Kg7 {[%clk
0:01:29.9]} 23. f3 {[%clk 0:01:59]} 23... c6 {[%clk 0:01:10.3]} 24. dxc6 {[%clk
0:01:53.6]} 24... Rxc6 {[%clk 0:01:11.2]} 25. Nb2 {[%clk 0:01:53.8]} 25... axb4
{[%clk 0:01:06.3]} 26. axb4 {[%clk 0:01:53.4]} 26... Nc7 {[%clk 0:01:01.3]} 27.
Nc3 {[%clk 0:01:42.9]} 27... Ne6 {[%clk 0:00:47.3]} 28. Ra1 {[%clk 0:01:31.8]}
28... Rac8 {[%clk 0:00:43.5]} 29. Nb5 {[%clk 0:01:23.7]} 29... Rb8 {[%clk
0:00:21.4]} 30. Rfd1 {[%clk 0:01:17.7]} 30... Ndf8 {[%clk 0:00:16.1]} 31. Ra7
{[%clk 0:01:11.6]} 31... Qf6 {[%clk 0:00:12.7]} 32. Qd5 {[%clk 0:00:49.5]} 32...
Rbc8 {[%clk 0:00:07.2]} 33. Nxd6 {[%clk 0:00:46.1]} 33... Rxd6 {[%clk
0:00:05.2]} 34. Qxd6 {[%clk 0:00:42.9]} 34... Rd8 {[%clk 0:00:03.6]} 35. Qxb6
{[%clk 0:00:38.9]} 35... Rxd1+ {[%clk 0:00:03.4]} 36. Nxd1 {[%clk 0:00:39.8]}
36... Qg5 {[%clk 0:00:04.1]} 37. Qe3 {[%clk 0:00:37.3]} 37... Qd8 {[%clk
0:00:03.5]} 38. Nc3 {[%clk 0:00:31.2]} 38... Nd4 {[%clk 0:00:03.8]} 39. Nd5
{[%clk 0:00:29.6]} 39... Nfe6 {[%clk 0:00:03.5]} 40. c5 {[%clk 0:00:23.5]} 40...
Qb8 {[%clk 0:00:03.3]} 41. Ra2 {[%clk 0:00:20.8]} 41... Qb5 {[%clk 0:00:03.5]}
42. h3 {[%clk 0:00:15.5]} 42... h5 {[%clk 0:00:03.3]} 43. Kh2 {[%clk 0:00:15.1]}
43... h4 {[%clk 0:00:03.8]} 44. Qf2 {[%clk 0:00:14.7]} 44... g5 {[%clk
0:00:03.5]} 45. Rc2 {[%clk 0:00:14.3]} 45... Qd3 {[%clk 0:00:03.1]} 46. Rd2
{[%clk 0:00:05.8]} 46... Qc4 {[%clk 0:00:03.6]} 47. Rd1 {[%clk 0:00:05]} 47...
Qb3 {[%clk 0:00:02.4]} 48. Qd2 {[%clk 0:00:04.9]} 48... Qc4 {[%clk 0:00:02.2]}
49. Qd3 {[%clk 0:00:04.6]} 1-0

[Event "Early-Titled-Tuesday-Blitz-March-05-2024"]
[Site "Chess.com"]
[Date "2024.03.05"]
[Round "3"]
[White "unagi64"]
[Black "KorolDimitriy75"]
[Result "1-0"]
[WhiteElo "2614"]
[BlackElo "2440"]
[TimeControl "180+1"]
[EndTime "8:32:02 PST"]
[Termination "unagi64 won on time"]

1. c4 {[%clk 0:03:00.9]} 1... c5 {[%clk 0:03:00]} 2. g3 {[%clk 0:03:01]} 2... g6
{[%clk 0:03:00.2]} 3. Bg2 {[%clk 0:03:01.5]} 3... Bg7 {[%clk 0:03:01]} 4. Nf3
{[%clk 0:03:01.7]} 4... Nc6 {[%clk 0:03:01.7]} 5. O-O {[%clk 0:03:02.2]} 5...
Nh6 {[%clk 0:03:01.9]} 6. Nc3 {[%clk 0:03:01.8]} 6... Nf5 {[%clk 0:03:02.3]} 7.
a3 {[%clk 0:03:02.3]} 7... h5 {[%clk 0:03:02.6]} 8. h4 {[%clk 0:03:01]} 8... a6
{[%clk 0:03:02.4]} 9. Rb1 {[%clk 0:03:01.1]} 9... Rb8 {[%clk 0:03:02.8]} 10. b4
{[%clk 0:03:01.3]} 10... cxb4 {[%clk 0:03:03.5]} 11. axb4 {[%clk 0:03:01.7]}
11... b5 {[%clk 0:03:04.2]} 12. cxb5 {[%clk 0:03:01.9]} 12... axb5 {[%clk
0:03:05.1]} 13. e3 {[%clk 0:02:59]} 13... e6 {[%clk 0:03:05.2]} 14. d4 {[%clk
0:02:57.8]} 14... d5 {[%clk 0:03:05.4]} 15. Ne1 {[%clk 0:02:48]} 15... Nd6
{[%clk 0:03:04.9]} 16. Nd3 {[%clk 0:02:47.8]} 16... Nc4 {[%clk 0:03:04.9]} 17.
Nc5 {[%clk 0:02:46.4]} 17... O-O {[%clk 0:03:05.3]} 18. Qb3 {[%clk 0:02:41.6]}
18... Qb6 {[%clk 0:03:05.1]} 19. Ra1 {[%clk 0:02:40]} 19... Rd8 {[%clk
0:02:59.1]} 20. Rd1 {[%clk 0:02:38.7]} 20... Bb7 {[%clk 0:02:31]} 21. Bd2 {[%clk
0:02:36.6]} 21... Ra8 {[%clk 0:02:27.8]} 22. Be1 {[%clk 0:02:36.2]} 22... Kh7
{[%clk 0:01:56.3]} 23. Ne2 {[%clk 0:02:35.5]} 23... Rxa1 {[%clk 0:01:34.1]} 24.
Rxa1 {[%clk 0:02:28.9]} 24... Ra8 {[%clk 0:01:35]} 25. Rxa8 {[%clk 0:02:27.6]}
25... Bxa8 {[%clk 0:01:35.9]} 26. Qa2 {[%clk 0:02:25.1]} 26... Qa7 {[%clk
0:01:10.3]} 27. Qxa7 {[%clk 0:02:23.7]} 27... Nxa7 {[%clk 0:01:11.2]} 28. Nc1
{[%clk 0:02:23]} 28... Bc6 {[%clk 0:01:06.9]} 29. N1b3 {[%clk 0:02:22.8]} 29...
Be8 {[%clk 0:01:05.3]} 30. Bf3 {[%clk 0:02:13.4]} 30... Kg8 {[%clk 0:01:05.3]}
31. Be2 {[%clk 0:02:07.9]} 31... Kf8 {[%clk 0:01:04.7]} 32. Na5 {[%clk
0:02:07.8]} 32... Ke7 {[%clk 0:01:02.7]} 33. Bc3 {[%clk 0:02:01.3]} 33... Nc6
{[%clk 0:00:52.7]} 34. Nab7 {[%clk 0:01:53.9]} 34... Na7 {[%clk 0:00:49]} 35.
Kf1 {[%clk 0:01:52.9]} 35... Nc8 {[%clk 0:00:45.6]} 36. Ke1 {[%clk 0:01:49.9]}
36... N8b6 {[%clk 0:00:45]} 37. Kd1 {[%clk 0:01:46.8]} 37... Bd7 {[%clk
0:00:42.5]} 38. Kc2 {[%clk 0:01:45.3]} 38... Bc6 {[%clk 0:00:41.3]} 39. Na5
{[%clk 0:01:43.9]} 39... Bd7 {[%clk 0:00:41]} 40. Bd3 {[%clk 0:01:37.1]} 40...
Be8 {[%clk 0:00:40.4]} 41. Nab3 {[%clk 0:01:29.5]} 41... Bc6 {[%clk 0:00:38.5]}
42. Bd2 {[%clk 0:01:29.4]} 42... Be8 {[%clk 0:00:38.3]} 43. f3 {[%clk
0:01:29.3]} 43... Bc6 {[%clk 0:00:36.1]} 44. e4 {[%clk 0:01:28.9]} 44... e5
{[%clk 0:00:12.5]} 45. dxe5 {[%clk 0:01:22.4]} 45... Nxe5 {[%clk 0:00:10.7]} 46.
Nd4 {[%clk 0:01:08.5]} 46... Be8 {[%clk 0:00:09.8]} 47. Bxb5 {[%clk 0:01:01.2]}
47... Bxb5 {[%clk 0:00:07.8]} 48. Nxb5 {[%clk 0:01:01.3]} 48... Nxf3 {[%clk
0:00:07.7]} 49. Nc3 {[%clk 0:00:54.4]} 49... dxe4 {[%clk 0:00:04.6]} 50. N3xe4
{[%clk 0:00:52.6]} 50... Ne5 {[%clk 0:00:04.1]} 51. Bf4 {[%clk 0:00:48.8]} 51...
Nd5 {[%clk 0:00:03.3]} 52. Bxe5 {[%clk 0:00:46.3]} 52... Bxe5 {[%clk 0:00:04.2]}
53. Kb3 {[%clk 0:00:42.6]} 53... f5 {[%clk 0:00:04]} 54. Nd3 {[%clk 0:00:34.6]}
54... Bxg3 {[%clk 0:00:04.2]} 55. Nxg3 {[%clk 0:00:34]} 55... Kf6 {[%clk
0:00:03.3]} 56. Kc4 {[%clk 0:00:33.1]} 56... Ne3+ {[%clk 0:00:03.1]} 57. Kc5
{[%clk 0:00:33.4]} 57... Ng2 {[%clk 0:00:02.7]} 58. b5 {[%clk 0:00:32.7]} 58...
f4 {[%clk 0:00:02.3]} 59. Ne4+ {[%clk 0:00:30.5]} 59... Kf5 {[%clk 0:00:02.2]}
60. Nef2 {[%clk 0:00:29]} 60... f3 {[%clk 0:00:02.4]} 61. b6 {[%clk 0:00:29]}
61... Nxh4 {[%clk 0:00:02]} 62. b7 {[%clk 0:00:29]} 1-0

[Event "Early-Titled-Tuesday-Blitz-March-05-2024"]
[Site "Chess.com"]
[Date "2024.03.05"]
[Round "3"]
[White "GameOverBro"]
[Black "ChessBrainiacOnTwitch"]
[Result "0-1"]
[WhiteElo "2558"]
[BlackElo "2842"]
[TimeControl "180+1"]
[EndTime "8:32:05 PST"]
[Termination "ChessBrainiacOnTwitch won by resignation"]

1. e4 {[%clk 0:03:00.9]} 1... c5 {[%clk 0:02:59.8]} 2. Ne2 {[%clk 0:03:01]} 2...
Nc6 {[%clk 0:02:50.1]} 3. Nbc3 {[%clk 0:03:00.6]} 3... Nf6 {[%clk 0:02:49.7]} 4.
g3 {[%clk 0:02:59.8]} 4... g6 {[%clk 0:02:49.4]} 5. d4 {[%clk 0:02:59.2]} 5...
cxd4 {[%clk 0:02:47.4]} 6. Nxd4 {[%clk 0:03:00.1]} 6... Bg7 {[%clk 0:02:47.7]}
7. Nde2 {[%clk 0:03:00.5]} 7... O-O {[%clk 0:02:47.6]} 8. Bg2 {[%clk 0:03:01.1]}
8... a6 {[%clk 0:02:47.6]} 9. a4 {[%clk 0:03:00.4]} 9... d6 {[%clk 0:02:47.5]}
10. O-O {[%clk 0:03:00.4]} 10... Rb8 {[%clk 0:02:47.2]} 11. Nd5 {[%clk 0:02:55]}
11... b5 {[%clk 0:02:45.6]} 12. axb5 {[%clk 0:02:55.7]} 12... axb5 {[%clk
0:02:46.5]} 13. c3 {[%clk 0:02:55.4]} 13... e6 {[%clk 0:02:42.6]} 14. Nxf6+
{[%clk 0:02:23.6]} 14... Bxf6 {[%clk 0:02:43.5]} 15. Nd4 {[%clk 0:02:17.6]}
15... Ne5 {[%clk 0:02:35.8]} 16. Nc2 {[%clk 0:02:11.3]} 16... Bb7 {[%clk
0:02:32.9]} 17. h3 {[%clk 0:01:56.7]} 17... Ra8 {[%clk 0:02:32.4]} 18. Bh6
{[%clk 0:01:52.3]} 18... Re8 {[%clk 0:02:30]} 19. Rxa8 {[%clk 0:01:51.4]} 19...
Qxa8 {[%clk 0:02:30.9]} 20. Re1 {[%clk 0:01:32.3]} 20... Rd8 {[%clk 0:02:29.2]}
21. Nb4 {[%clk 0:01:24.6]} 21... Nc4 {[%clk 0:02:18.4]} 22. Qc2 {[%clk
0:01:18.3]} 22... Rc8 {[%clk 0:02:16.3]} 23. h4 {[%clk 0:01:06.6]} 23... Nxb2
{[%clk 0:02:02.2]} 24. Qxb2 {[%clk 0:01:01]} 24... Bxc3 {[%clk 0:02:02.4]} 25.
Qb1 {[%clk 0:01:00.8]} 25... Qa5 {[%clk 0:01:30.9]} 26. Nd3 {[%clk 0:00:41.1]}
26... Bxe1 {[%clk 0:01:28.2]} 27. Nxe1 {[%clk 0:00:40.5]} 27... Qc3 {[%clk
0:01:26.6]} 28. Nd3 {[%clk 0:00:31]} 28... Ba6 {[%clk 0:00:51.7]} 29. Nb4 {[%clk
0:00:28]} 29... Bb7 {[%clk 0:00:51.2]} 30. Nd3 {[%clk 0:00:27.9]} 30... Bc6
{[%clk 0:00:49.8]} 31. Nb4 {[%clk 0:00:23]} 31... Bd7 {[%clk 0:00:49.7]} 32. Bf1
{[%clk 0:00:22.9]} 32... Qd4 {[%clk 0:00:44.8]} 33. Be3 {[%clk 0:00:21.4]} 33...
Qc3 {[%clk 0:00:42.2]} 34. Bh6 {[%clk 0:00:21.2]} 34... Ra8 {[%clk 0:00:40.6]}
35. Nc2 {[%clk 0:00:16.2]} 35... f6 {[%clk 0:00:32.3]} 36. Be3 {[%clk
0:00:14.3]} 36... Rc8 {[%clk 0:00:28.7]} 37. Nb4 {[%clk 0:00:12.1]} 37... Ra8
{[%clk 0:00:28.3]} 38. Nc2 {[%clk 0:00:11.7]} 38... Ra4 {[%clk 0:00:23.7]} 39.
Qd1 {[%clk 0:00:11]} 39... Qc7 {[%clk 0:00:20.5]} 40. Bd4 {[%clk 0:00:10.9]}
40... e5 {[%clk 0:00:18.6]} 41. Be3 {[%clk 0:00:11.5]} 41... Bc6 {[%clk
0:00:17.7]} 42. Qd2 {[%clk 0:00:11.3]} 42... Rxe4 {[%clk 0:00:17]} 43. Qc3
{[%clk 0:00:11.1]} 43... Qd7 {[%clk 0:00:16.2]} 44. Nb4 {[%clk 0:00:10.8]} 44...
Bb7 {[%clk 0:00:16]} 45. Qb3+ {[%clk 0:00:11]} 45... d5 {[%clk 0:00:16.5]} 46.
Nc2 {[%clk 0:00:08.4]} 46... Kg7 {[%clk 0:00:16.7]} 47. Bxb5 {[%clk 0:00:08.2]}
47... Bc6 {[%clk 0:00:15.5]} 48. Bd3 {[%clk 0:00:08.7]} 48... Ra4 {[%clk
0:00:14.7]} 49. Nb4 {[%clk 0:00:08.4]} 49... d4 {[%clk 0:00:14.1]} 50. Bd2
{[%clk 0:00:07.5]} 50... Ra1+ {[%clk 0:00:13.7]} 51. Bb1 {[%clk 0:00:05.9]}
51... Be4 {[%clk 0:00:13.3]} 52. Nc2 {[%clk 0:00:06.5]} 52... Ra7 {[%clk
0:00:11.2]} 53. Bc1 {[%clk 0:00:06.7]} 53... Rb7 {[%clk 0:00:11.7]} 54. Qa2
{[%clk 0:00:06.7]} 54... Qc6 {[%clk 0:00:11.7]} 55. Bd2 {[%clk 0:00:05.9]} 55...
Qb5 {[%clk 0:00:11]} 56. Na3 {[%clk 0:00:05.6]} 56... Bxb1 {[%clk 0:00:10.8]}
57. Nxb5 {[%clk 0:00:04.2]} 57... Bxa2 {[%clk 0:00:11]} 58. Nd6 {[%clk
0:00:04.8]} 58... Rb1+ {[%clk 0:00:11.3]} 59. Kg2 {[%clk 0:00:04.1]} 59... Bd5+
{[%clk 0:00:12.2]} 60. f3 {[%clk 0:00:04.7]} 60... Rb2 {[%clk 0:00:12.1]} 0-1

[Event "Early-Titled-Tuesday-Blitz-March-05-2024"]
[Site "Chess.com"]
[Date "2024.03.05"]
[Round "3"]
[White "lagunanivaria"]
[Black "Caroexpert"]
[Result "0-1"]
[WhiteElo "2444"]
[BlackElo "2618"]
[TimeControl "180+1"]
[EndTime "8:32:05 PST"]
[Termination "Caroexpert won by resignation"]

1. e3 {[%clk 0:02:53.7]} 1... Nf6 {[%clk 0:02:57.7]} 2. d4 {[%clk 0:02:53.3]}
2... b6 {[%clk 0:02:58.2]} 3. Nf3 {[%clk 0:02:51.5]} 3... Bb7 {[%clk 0:02:58.6]}
4. Bd3 {[%clk 0:02:51.9]} 4... e6 {[%clk 0:02:57.4]} 5. O-O {[%clk 0:02:52.4]}
5... Be7 {[%clk 0:02:57.5]} 6. b3 {[%clk 0:02:52.3]} 6... O-O {[%clk 0:02:57.8]}
7. Bb2 {[%clk 0:02:52.7]} 7... c5 {[%clk 0:02:58.3]} 8. c4 {[%clk 0:02:51.5]}
8... Nc6 {[%clk 0:02:58.7]} 9. Nbd2 {[%clk 0:02:50.9]} 9... d5 {[%clk
0:02:58.2]} 10. a3 {[%clk 0:02:50.2]} 10... Rc8 {[%clk 0:02:47.5]} 11. Qe2
{[%clk 0:02:49.4]} 11... Re8 {[%clk 0:02:43.2]} 12. Rfd1 {[%clk 0:02:49.3]}
12... Bd6 {[%clk 0:02:42.8]} 13. h3 {[%clk 0:02:47.3]} 13... Qc7 {[%clk
0:02:42.2]} 14. Rac1 {[%clk 0:02:46.3]} 14... e5 {[%clk 0:02:41.6]} 15. cxd5
{[%clk 0:02:34.4]} 15... Nxd4 {[%clk 0:01:52.2]} 16. exd4 {[%clk 0:02:26.2]}
16... exd4 {[%clk 0:01:52.6]} 17. Qf1 {[%clk 0:02:21.9]} 17... Nxd5 {[%clk
0:01:48.9]} 18. Bxd4 {[%clk 0:02:18.1]} 18... Nf4 {[%clk 0:01:47.9]} 19. Be3
{[%clk 0:02:04.6]} 19... Rcd8 {[%clk 0:01:38.4]} 20. Nc4 {[%clk 0:01:20.1]}
20... Nxh3+ {[%clk 0:01:20.8]} 21. Kh1 {[%clk 0:00:55.8]} 21... Bf4 {[%clk
0:01:11]} 22. Be2 {[%clk 0:00:36.5]} 22... b5 {[%clk 0:00:57.9]} 23. Rxd8 {[%clk
0:00:26.3]} 23... Qxd8 {[%clk 0:00:54.2]} 24. gxh3 {[%clk 0:00:20.8]} 24... Qh4
{[%clk 0:00:39.6]} 25. Bxf4 {[%clk 0:00:15.3]} 25... Qxf4 {[%clk 0:00:35.4]} 26.
Ne3 {[%clk 0:00:14.4]} 26... Bxf3+ {[%clk 0:00:29.7]} 27. Bxf3 {[%clk
0:00:15.3]} 27... Qxf3+ {[%clk 0:00:30.6]} 28. Qg2 {[%clk 0:00:15.8]} 28... Qe2
{[%clk 0:00:16.2]} 29. Rxc5 {[%clk 0:00:10.1]} 29... g6 {[%clk 0:00:14.5]} 30.
Rc1 {[%clk 0:00:07.5]} 30... Qb2 {[%clk 0:00:12.9]} 31. Rg1 {[%clk 0:00:06.9]}
31... Qxb3 {[%clk 0:00:11.5]} 32. Qg5 {[%clk 0:00:06.3]} 32... Qxa3 {[%clk
0:00:10]} 33. Ng4 {[%clk 0:00:05.8]} 33... Re6 {[%clk 0:00:08.1]} 34. Qd8+
{[%clk 0:00:03.8]} 34... Kg7 {[%clk 0:00:08.2]} 35. Qd4+ {[%clk 0:00:04.4]}
35... Kg8 {[%clk 0:00:07.6]} 36. Nh6+ {[%clk 0:00:04.4]} 36... Kf8 {[%clk
0:00:07.2]} 37. Qh8+ {[%clk 0:00:02.5]} 37... Ke7 {[%clk 0:00:07.7]} 38. Ng8+
{[%clk 0:00:03.4]} 38... Kd6 {[%clk 0:00:06.8]} 39. Rd1+ {[%clk 0:00:03.8]}
39... Kc6 {[%clk 0:00:04.1]} 40. Ne7+ {[%clk 0:00:04.3]} 40... Qxe7 {[%clk
0:00:03.9]} 41. Qc8+ {[%clk 0:00:04.3]} 41... Kb6 {[%clk 0:00:04.6]} 42. Qa8
{[%clk 0:00:01.7]} 42... Qb7+ {[%clk 0:00:05]} 43. Qxb7+ {[%clk 0:00:02.1]}
43... Kxb7 {[%clk 0:00:05.9]} 44. Rd7+ {[%clk 0:00:02.5]} 44... Kb6 {[%clk
0:00:06.5]} 45. Rxf7 {[%clk 0:00:03.4]} 45... h5 {[%clk 0:00:07.1]} 46. Rf4
{[%clk 0:00:03]} 46... a5 {[%clk 0:00:07.5]} 47. Rf8 {[%clk 0:00:02.9]} 47... a4
{[%clk 0:00:08]} 48. Rb8+ {[%clk 0:00:03.1]} 48... Kc5 {[%clk 0:00:07.6]} 49.
Ra8 {[%clk 0:00:03.2]} 49... Kb4 {[%clk 0:00:07.5]} 0-1